Workbook

Sheet INFO
K1: Q199-03
K2: Verze: 3.0
K3: 2024-01-19
A5: Návrh neprůzvučných dveří GSD
A8: Popis výpočtu:
A9: Program je určen pro výpočet útlumu hluku mezi strojovnou (hlučný prostor) a místností (tichý prostor) nebo směrem do venkovního prostoru přes dělící nehomogenní stavební konstrukci. Výpočet umožňuje stanovit výslednou ("průměrnou") vzduchovou neprůzvučnost nehomogenní konstrukce pro 4 typy stavebních prvků. Výsledkem výpočtu je hladina akustického tlaku korigovaná filtrem A v místnosti nebo ve venkovním prostoru.
A14: V případě jednočíselného výpočtu není nutné zadávat frekvenční spektrum zdroje hluku. Hladina akustického tlaku je vypočtena na základě koeficientů přizpůsobení spektru (C; Ctr) pro daný stavební prvek.
A17: U frekvenčního výpočtu je nutné zadávat celá frekvenční spektra zdroje hluku, součinitele pohltivosti a vzduchové neprůzvučnosti stavebních prvků. Výpočet je tak přesnější, avšak vyžaduje podrobnější znalosti akustické problematiky.
A21: V případě, že si nebudete vědět rady, doporučujeme kontaktovat naše techniky, kteří Vám buď telefonicky poradí, nebo Vám výpočet pro konkrétní zadání za úhradu zpracují.
A24: Organizace programu:
A25: Na listě NEP-01 je jednočíslený výpočet útlumu hluku nehomogenní stavební konstrukce, určený pro odbornou veřejnost. Na listě NEP-02 je pak frekvenční výpočet, určený pro školené projektanty nebo profesionální akustiky.
A28: Jednotlivé listy lze libovolně kopírovat. Je tak možné v jednom souboru provádět výpočet různých konstrukcí.
A29: Zadávají se hodnoty do žlutých polí, nápovědy jsou přímo u buněk, nebo formou komentářů (červený růžek).
A30: Šedá pole jsou mezivýsledky, zelená pole jsou konečné výsledky.
A31: Podrobný uživatelský manuál je k dispozici na internetu www.greif.cz v katalogu ITS231-01.
A33: Nejistota výpočtu:
A34: U jednočíselného výpočtu se předpokládá nejistota ±4 dB. U frekvenčního výpočtu se nejistota výpočtu pohybuje dle přesnosti spektra tlumeného zdroje, většinou od 1,5 do 3 dB.
A37: Tisk výsledků:
A38: Vypočtené výsledky lze pro jednotlivé listy publikovat přímo na tiskárnu nebo do PDF. Každý výpočet je rozdělen na 3 stránky: Zadání / Situace / Pomocné tabulky.
A41: Odkaz na projekční katalogy:
A42: Internetová stránka www.greif.cz, sekce Výrobky / Stavební akustika / Neprůzvučné dveře Zde je ke stažení katalog včetně manuálu k softwaru ITS231-01 - Neprůzvučné dveře GSD
A45: Kontakt:
A46: Vaše připomínky na zlepšení, případně objevené chyby můžete posílat na micka@greif.cz. V případě, že budete potřebovat pomoc s návrhem stavební konstrukce, kontaktujte naší technickou podporu.

Sheet NEP-01
I2: Zadejte označení výpočtu | N2: Situace (půdorys) | X2: Tabulka 1 - výňatek z normy ČSN 73 0532 | AJ2: Vzduchová neprůzvučnost nehomogenní stavební konstrukce - výpočet
N3: Strojovna ® dělící konstrukce ® tichá místnost | X3: Korekce na vedlejší cesty přenosu zvuku pro vzduchovou neprůzvučnost dělících konstrukcí | AJ3: Konstrukce | AL3: Si*10exp(-0,1*Ri) | AN3: Si*10exp(-0,1*Ci) | AP3: Si*10exp(-0,1*Ctri) | AR3: Scelk | AS3: Rcelk | AT3: Ccelk | AU3: Ctrcelk
AJ4: Stěna | AL4: =F28*10^(-0.1*C28) -> 1.154e-05 | AN4: =F28*10^(-0.1*D28) -> 18.28966744 | AP4: =F28*10^(-0.1*E28) -> 45.94156748 | AR4: m2 | AS4: dB | AT4: dB | AU4: dB
A5: Návrh neprůzvučných dveří GSD - jednočíselný výpočet | O5: =IF(M12>0,"",C14) -> 2 | S5: Nehomogenní stavební konstrukce mezi strojovnou a tichou místností | X5: Dělící konstrukce (výpočtová) | AC5: Boční konstrukce (navazující) | AG5: Korekce k1 [dB] | AJ5: Dveře | AL5: =F29*10^(-0.1*C29) -> 2e-05 | AN5: =F29*10^(-0.1*D29) -> 3.169786385 | AP5: =F29*10^(-0.1*E29) -> 7.962143411 | AR5: =SUM(F28:F31) -> 15 | AS5: =ROUND(10*LOG10(AR5/AL8),0) -> 41 | AT5: =ROUND(10*LOG10(AR5/AN8),0) -> -2 | AU5: =ROUND(10*LOG10(AR5/AP8),0) -> -6
O6: dB | X6: Těžká dělící stěna (strop) | AA6: Rw ≥ 40 dB | AC6: 4x těžká | AG6: 2 | AJ6: Okno | AL6: 0.0009085785761 | AN6: 1.812852593 | AP6: 2.873177734
A7: Zadejte název projektu | X7: monolitická, prefabrikovaná nebo zděná (cihly, beton, pórobeton apod.) | AC7: 3x těžká, 1x lehká | AG7: 3 | AJ7: Mezera | AL7: 0.0002 | AN7: 0.02517850824 | AP7: 0.0632455532
A8: Zadejte název instalace | N8: Strojovna (hlučný prostor) | R8: Místnost (tíchý prostor) | AC8: 2x těžká, 2x lehká | AG8: 4 | AJ8: Suma | AL8: =SUM(AL4:AM7) -> 0.001140118576 | AN8: =SUM(AN4:AO7) -> 23.29748493 | AP8: =SUM(AP4:AQ7) -> 56.84013418
L9: Zadejte žlutá pole, nebo vepište poznámky… | AC9: 1x těžká, 3x lehká | AG9: 5
A10: Hladina akustického tlaku ve strojovně a parametry prostoru | AC10: vyzdívaný skelet | AG10: ≥ 4
A11: Zadejte průměrnou hladinu akustického tlaku ve strojovně (hlučné místnosti) a definujte základní parametry prostoru | N11: Lp1 | O11: =IF(M12>0,"",C13) -> 100 | S11: =K37 -> 61 | T11: Lp2 | V11: =IF(M12>0,"",C15) -> 5 | X11: Lehká dělící stěna (strop) | AA11: Rw ≤ 55 dB | AC11: 4x těžká | AG11: 5
M12: =SUM(M13:M18)+SUM(M28:M31) -> 0 | O12: dB | S12: dB | V12: m | X12: montovaná konstrukce z desek a nosného roštu (sádrokarton, dřevo apod.) | AC12: 3x těžká, 1x lehká | AG12: 6
A13: Lp1 | B13: dB | C13: 100 | D13: =IF(M13=0,"průměrná hladina akustického tlaku měřená ve strojovně (hlučný prostor)","zadejte hodnotu v požadovaném rozsahu") -> průměrná hladina akustického tlaku měřená ve strojovně (hlučný prostor) | M13: =IF(OR(C13<20,C13>150),1,0) -> 0 | N13: Rwcelk | O13: =IF(M12>0,"",CONCATENATE(AS5," (",AT5,";",AU5,")","")) -> 41 (-2;-6) | S13: =K39 -> 65 | V13: =IF(M12>0,"",C16) -> 3 | AC13: 2x těžká, 2x lehká | AG13: 8
A14: k1 | B14: dB | C14: 2 | D14: =IF(M14=0,"korekce závislá na vedlejších cestách šíření zvuku přes stavební konstrukce (viz tabulka 1)","zadejte hodnotu v požadovaném rozsahu") -> korekce závislá na vedlejších cestách šíření zvuku přes stavební konstrukce (viz tabulka 1) | M14: =IF(OR(C14<0,C14>20),1,0) -> 0 | O14: dB | S14: dB | V14: m | X14: Lehká dělící stěna (strop) | AA14: Rw ≥ 55 dB | AC14: 4x těžká | AG14: 6
A15: a | B15: m | C15: 5 | D15: =IF(M15=0,"šířka místnosti (šířka dělicí konstrukce)","zadejte hodnotu v požadovaném rozsahu") -> šířka místnosti (šířka dělicí konstrukce) | M15: =IF(OR(C15<1,C15>200),1,0) -> 0 | X15: montovaná konstrukce z desek a nosného roštu (sádrokarton, dřevo apod.) | AC15: 3x těžká, 1x lehká | AG15: 7
A16: b | B16: m | C16: 3 | D16: =IF(M16=0,"výška místnosti (výška dělící konstrukce)","zadejte hodnotu v požadovaném rozsahu") -> výška místnosti (výška dělící konstrukce) | M16: =IF(OR(C16<1,C16>200),1,0) -> 0 | AC16: 2x těžká, 2x lehká | AG16: ≥ 8
A17: c | B17: m | C17: 6 | D17: =IF(M17=0,"hloubka místnosti (nepoužívá se pro venkovní prostor)","zadejte hodnotu v požadovaném rozsahu") -> hloubka místnosti (nepoužívá se pro venkovní prostor) | M17: =IF(OR(C17<1,C17>200),1,0) -> 0 | X17: Za boční konstrukce se zde pokládají svislé a vodorovné stavební konstrukce obklopující dělicí stavební konstrukci (tj. boční stěny a stropní konstrukce včetně podlah). Např. označení "4x těžká" znamená, že dělící konstrukce navazuje na 4 konstrukce v masivním, těžkém provedení (tj. 2 stěny, strop a podlahu).
A18: am | B18: - | C18: 0.2 | D18: =IF(M18=0,"střední činitel zvukové pohltivosti (nepoužívá se pro venkovní prostor)","zadejte hodnotu v požadovaném rozsahu") -> střední činitel zvukové pohltivosti (nepoužívá se pro venkovní prostor) | M18: =IF(OR(C18<0.01,C18>1),1,0) -> 0
A19: S | B19: m2 | C19: =IF(M12=0,C15*C16,"") -> 15 | D19: plocha dělicí konstrukce (a x b) | N19: Boční přenos hluku přes stavební konstrukce | S19: =IF(M12>0,"",C17) -> 6
A20: Sv | B20: m2 | C20: =IF(M12=0,2*(C15+C16)*C17+2*C15*C16,"") -> 126 | D20: součet všech ploch ohraničujících místnost (tichý prostor) | S20: m | X20: Vedlejší cesty obecně závisí na množství okrajových podmínek, zejména ve styku konstrukcí a jejich různém dispozíčním řešení, které lze jen obtížně zobecnit. Pro složitější situace je nutné korekci stanovit individuálně. Hodnoty v tabulce 7 vycházejí z praktických zkušeností a z měření na stavbách. Za lehké konstrukce se zde pokládají pouze roštové konstrukce z desek, které obvykle mají hmotnost do 100 kg/m2. Přesnější, ale teoretické hodnoty odhadu vlivu vedlejších cest pro modelové situace podle tvaru styku, druhu a plošných hmotností dělícího prvku a bočních konstrukcí lze získat např. výpočtem podle přílohy E normy ČSN 73 0532 nebo podle ČSN EN ISO 12354-1 apod.
A21: A2 | B21: m2 | C21: =IF(M12=0,C20*C18,"") -> 25.2 | D21: celková pohltivost v přijímací místnosti (am*Sv)
A23: Vzduchová neprůzvučnost nehomogenní stavební konstrukce | N23: Strojovna ® dělící konstrukce ® venkovní prostor
A24: Zadejte parametry stavebních prvků dělící konstrukce mezi strojovnou a tichou místností (venkovním prostorem)
O25: =IF(M12>0,"",C14) -> 2 | S25: Nehomogenní stavební konstrukce mezi strojovnou a tichou místností
A26: Rwcelk = 10*log (S(Si)/S(Si*10(-0,1*Rwi))) | J26: = | K26: =IF(M12>0,"",CONCATENATE(AS5," (",AT5,";",AU5,")"," dB")) -> 41 (-2;-6) dB | O26: dB | X26: Tabulka 2 - typické stavební konstrukce
A27: Konstrukce | C27: Rwi [dB] | D27: C [dB] | E27: Ctr [dB] | F27: Si [m2] | G27: neprůzvučnost / koeficienty přizpůsobení / plocha | X27: Vybrané stavební konstrukce a jejich faktory přizpůsobení spektru (orientační hodnoty)
A28: Stěna | C28: 60 | D28: -2 | E28: -6 | F28: =(C15*C16)-SUM(F29:F31) -> 11.54 | G28: =IF(M28=0,"stěna mezi strojovnou a místností / venkovním prostorem","zadejte hodnotu v požadovaném rozsahu") -> stěna mezi strojovnou a místností / venkovním prostorem | M28: =IF(F28<0,1,IF(OR(OR(C28<0,C28>80),OR(D28>0,D28<-25),OR(E28>0,E28<-25)),1,0)) -> 0 | N28: Strojovna (hlučný prostor) | R28: Venkovní prostor (tíchý prostor)
A29: Dveře | C29: 50 | D29: -2 | E29: -6 | F29: 2 | G29: =IF(M29=0,"neprůzvučné dveře instalované v dělící konstrukci","zadejte hodnotu v požadovaném rozsahu") -> neprůzvučné dveře instalované v dělící konstrukci | M29: =IF(C29="",0,IF(OR(OR(C29<0,C29>80),OR(D29>0,D29<-25),OR(E29>0,E29<-25),OR(F29<0,F29>100)),1,0)) -> 0 | X29: Typ stavební konstrukce | AC29: Rw [dB] | AE29: C [dB] | AG29: Ctr [dB]
A30: Okno | C30: 32 | D30: -1 | E30: -3 | F30: =1.2*1.2 -> 1.44 | G30: =IF(M30=0,"okno nebo jiný další prvek v dělící stěně","zadejte hodnotu v požadovaném rozsahu") -> okno nebo jiný další prvek v dělící stěně | M30: =IF(C30="",0,IF(OR(OR(C30<0,C30>80),OR(D30>0,D30<-25),OR(E30>0,E30<-25),OR(F30<0,F30>100)),1,0)) -> 0 | X30: Dveře GREIF GSD 1 (jednokřídlé) | AC30: 50 | AE30: -2 | AG30: -6
A31: Mezera | C31: 20 | D31: -1 | E31: -5 | F31: 0.02 | G31: =IF(M31=0,"netěsnost mezi dělící a boční konstrukcí","zadejte hodnotu v požadovaném rozsahu") -> netěsnost mezi dělící a boční konstrukcí | M31: =IF(C31="",0,IF(OR(OR(C31<0,C31>80),OR(D31>0,D31<-25),OR(E31>0,E31<-25),OR(F31<0,F31>100)),1,0)) -> 0 | N31: Lp1 | O31: =IF(M12>0,"",C13) -> 100 | S31: =K45 -> 57 | T31: Lp2 | V31: =IF(M12>0,"",C15) -> 5 | X31: Dveře GRIEF GSD 2 (dvoukřídlé) | AC31: 46 | AE31: -1 | AG31: -4
O32: dB | S32: dB | V32: m | X32: Železobetonová stěna 200 mm, 2400 kg/m3 | AC32: 57 | AE32: -1 | AG32: -6
A33: Hladina akustického tlaku šířeného ze strojovny do sousední místnosti | N33: Rwcelk | O33: =IF(M12>0,"",CONCATENATE(AS5," (",AT5,";",AU5,")","")) -> 41 (-2;-6) | S33: =K47 -> 61 | V33: =IF(M12>0,"",C16) -> 3 | X33: Železobetonová stěna 250 mm, 2400 kg/m3 | AC33: 60 | AE33: -2 | AG33: -6
A34: Očekávaná hladina akustického tlaku šířená ze strojovny do sousední místnosti, vypočtená dle frekvenčního spektra zdroje… | O34: dB | S34: dB | V34: m | X34: Plná cihla 140 mm, 1900 kg/m3 | AC34: 48 | AE34: -1 | AG34: -4
X35: Porotherm 11,5 AKU | AC35: 47 | AE35: -2 | AG35: -5
A36: Pro zdroje hluku jako jsou malé a středně velké ventilátory, hluk generovaný při proudění plynů a par, hluk trafostanic apod. | X36: Porotherm 19 AKU | AC36: 54 | AE36: -2 | AG36: -6
A37: Lp2 = Lp1 - ((Rwcelk + C - k1) + 10*log (A2/S)) | J37: = | K37: =IF(M12>0,"",ROUND(C13-((AS5+AT5-C14)+10*LOG10(C21/C19)),0)) -> 61 | X37: YTONG 150 mm, 500 kg/m3 | AC37: 41 | AE37: -1 | AG37: -3
A38: Pro zdroje hluku jako jsou kompresory, turbíny, dieselagregáty, velké ventilátory, hluk z dopravy, apod. | X38: LIAPOR M 175, 1300 kg/m3 | AC38: 55 | AE38: -1 | AG38: -5
A39: Lp2 = Lp1 - ((Rwcelk + Ctr - k1) + 10*log (A2/S)) | J39: = | K39: =IF(M12>0,"",ROUND(C13-((AS5+AU5-C14)+10*LOG10(C21/C19)),0)) -> 65 | N39: Boční přenos hluku přes stavební konstrukce | X39: SDK W112 tl. 100 mm (opláštění 2x12,5 mm) | AC39: 51 | AE39: -3 | AG39: -9
X40: SDK W115 tl. 155 mm (opláštění 2x12,5 mm) | AC40: 62 | AE40: -3 | AG40: -9
A41: Hladina akustického tlaku šířeného ze strojovny do venkovního prostoru | X41: Okno standardní | AC41: 32 | AE41: -1 | AG41: -3
A42: Očekávaná hladina akustického tlaku šířená ze strojovny do venkovního prostoru, vypočtená dle frekvenčního spektra zdroje… | X42: Okno zesílené | AC42: 37 | AE42: -1 | AG42: -4
N43: Komentovaný závěr výpočtu: | X43: Okno zvukoizolační | AC43: 40 | AE43: -2 | AG43: -6
A44: =A36 -> Pro zdroje hluku jako jsou malé a středně velké ventilátory, hluk generovaný při proudění plynů a par, hluk trafostanic apod. | N44: Hladina akustického tlaku Lp2 šířená ze strojovny přes stavební konstrukci, | X44: Dveře dřevěné (s prahem) | AC44: 27 | AE44: -1 | AG44: -4
A45: Lp2 = Lp1 - (Rwcelk + C - k1) - 6 | H45: = | J45: = | K45: =IF(M12>0,"",ROUND(C13-(AS5+AT5-C14)-6,1)) -> 57 | N45: bude dle typu frekvenčního spektra zdroje hluku ležet v pásmu: | X45: Dveře plechové (jednoplášťové s prahem) | AC45: 30 | AE45: -2 | AG45: -5
A46: =A38 -> Pro zdroje hluku jako jsou kompresory, turbíny, dieselagregáty, velké ventilátory, hluk z dopravy, apod. | N46: =IF(M12>0,"",CONCATENATE(S11," až ",S13," dB")) -> 61 až 65 dB | P46: - pro hluk šířený ze strojovny do uzavřené sousední místnosti, nebo | X46: Dveře plechové (dvouplášťové s prahem) | AC46: 39 | AE46: -3 | AG46: -6
A47: Lp2 = Lp1 - (Rwcelk + Ctr - k1) - 6 | H47: = | J47: = | K47: =IF(M12>0,"",ROUND(C13-(AS5+AU5-C14)-6,1)) -> 61 | N47: =IF(M12>0,"",CONCATENATE(S31," až ",S33," dB")) -> 57 až 61 dB | P47: - pro hluk šířený ze strojovny do venkovního prostoru | X47: Kingspan FR 120 mm | AC47: 32 | AE47: -1 | AG47: -3

Sheet NEP-02
I2: Zadejte označení výpočtu | N2: Situace (půdorys) | X2: Tabulka 1 - výňatek z normy ČSN 73 0532 | AJ2: Výpočet
N3: Strojovna ® dělící konstrukce ® tichá místnost | X3: Korekce na vedlejší cesty přenosu zvuku pro vzduchovou neprůzvučnost dělících konstrukcí | AJ3: Stanovení celkových hladin hluku, neprůzvučností apod.
A5: Návrh neprůzvučných dveří GSD - frekvenční výpočet | O5: =IF($M$12>0,"",C16) -> 2 | S5: Nehomogenní stavební konstrukce mezi strojovnou a tichou místností | X5: Dělící konstrukce (výpočtová) | AC5: Boční konstrukce (navazující) | AG5: Korekce k1 [dB] | AJ5: Korekční křivka
O6: dB | X6: Těžká dělící stěna (strop) | AA6: Rw ≥ 40 dB | AC6: 4x těžká | AG6: 2 | AJ6: f | AK6: Hz | AL6: 31.5 | AM6: 63 | AN6: 125 | AO6: 250 | AP6: 500 | AQ6: 1000 | AR6: 2000 | AS6: 4000 | AT6: 8000
A7: Zadejte název projektu | X7: monolitická, prefabrikovaná nebo zděná (cihly, beton, pórobeton apod.) | AC7: 3x těžká, 1x lehká | AG7: 3 | AJ7: A | AK7: dB | AL7: -39.4 | AM7: -26.2 | AN7: -16.1 | AO7: -8.6 | AP7: -3.2 | AQ7: 0 | AR7: 1.2 | AS7: 1 | AT7: -1.1
A8: Zadejte název instalace | N8: Strojovna (hlučný prostor) | R8: Místnost (tíchý prostor) | AC8: 2x těžká, 2x lehká | AG8: 4
L9: Zadejte žlutá pole, nebo vepište poznámky… | AC9: 1x těžká, 3x lehká | AG9: 5 | AJ9: Hladina akustického tlaku ve strojovně
A10: Hladina akustického tlaku ve strojovně a parametry prostoru | AC10: vyzdívaný skelet | AG10: ≥ 4 | AJ10: f | AK10: Hz | AL10: 31.5 | AM10: 63 | AN10: 125 | AO10: 250 | AP10: 500 | AQ10: 1000 | AR10: 2000 | AS10: 4000 | AT10: 8000 | AU10: SUMA
A11: Zadejte průměrnou hladinu akustického tlaku ve strojovně (hlučné místnosti) a definujte základní parametry prostoru | N11: Lp1 | O11: =IF($M$12>0,"",L21) -> 100.0260271 | V11: =IF($M$12>0,"",C13) -> 6 | X11: Lehká dělící stěna (strop) | AA11: Rw ≤ 55 dB | AC11: 4x těžká | AG11: 5 | AJ11: Lp1-LIN | AK11: dB | AL11: =C21 -> 87 | AM11: 96 | AN11: 103 | AO11: 104 | AP11: 99 | AQ11: 93 | AR11: 83 | AS11: 74 | AT11: 63 | AU11: =IF(10*LOG10((10^(AL11/10))+(10^(AM11/10))+(10^(AN11/10))+(10^(AO11/10))+(10^(AP11/10))+(10^(AQ11/10))+(10^(AR11/10))+(10^(AS11/10))+(10^(AT11/10)))<20,"<20",10*LOG10((10^(AL11/10))+(10^(AM11/10))+(10^(AN11/10))+(10^(AO11/10))+(10^(AP11/10))+(10^(AQ11/10))+(10^(AR11/10))+(10^(AS11/10))+(10^(AT11/10)))) -> 107.7611203
M12: =SUM(M13:M16)+M21+M23+SUM(M31:M34) -> 0 | O12: dB | S12: =IF($M$12>0,"",L41) -> 67.44354998 | T12: Lp2 | V12: m | X12: montovaná konstrukce z desek a nosného roštu (sádrokarton, dřevo apod.) | AC12: 3x těžká, 1x lehká | AG12: 6 | AJ12: Lp1-A | AK12: dB | AL12: =IF((AL11+AL7)<0,0,AL11+AL7) -> 47.6 | AM12: =IF((AM11+AM7)<0,0,AM11+AM7) -> 69.8 | AN12: 86.9 | AO12: 95.4 | AP12: 95.8 | AQ12: 93 | AR12: 84.2 | AS12: 75 | AT12: 61.9 | AU12: =IF(10*LOG10((10^(AL12/10))+(10^(AM12/10))+(10^(AN12/10))+(10^(AO12/10))+(10^(AP12/10))+(10^(AQ12/10))+(10^(AR12/10))+(10^(AS12/10))+(10^(AT12/10)))<20,"<20",10*LOG10((10^(AL12/10))+(10^(AM12/10))+(10^(AN12/10))+(10^(AO12/10))+(10^(AP12/10))+(10^(AQ12/10))+(10^(AR12/10))+(10^(AS12/10))+(10^(AT12/10)))) -> 100.0260271
A13: a | B13: m | C13: 6 | D13: =IF(M13=0,"šířka místnosti (šířka dělicí konstrukce)","zadejte hodnotu v požadovaném rozsahu") -> šířka místnosti (šířka dělicí konstrukce) | M13: =IF(OR(C13<0,C13>200),1,0) -> 0 | N13: Rw500Hz | O13: =IF($M$12>0,"",G35) -> 34 | S13: dB | V13: =IF($M$12>0,"",C14) -> 3 | AC13: 2x těžká, 2x lehká | AG13: 8
A14: b | B14: m | C14: 3 | D14: =IF(M14=0,"výška místnosti (výška dělící konstrukce)","zadejte hodnotu v požadovaném rozsahu") -> výška místnosti (výška dělící konstrukce) | M14: =IF(OR(C14<0,C14>200),1,0) -> 0 | O14: dB | V14: m | X14: Lehká dělící stěna (strop) | AA14: Rw ≥ 55 dB | AC14: 4x těžká | AG14: 6 | AJ14: Nehomogenní konstrukce - Si*10exp(-0,1*Ri)
A15: c | B15: m | C15: 5 | D15: =IF(M15=0,"hloubka místnosti (nepoužívá se pro venkovní prostor)","zadejte hodnotu v požadovaném rozsahu") -> hloubka místnosti (nepoužívá se pro venkovní prostor) | M15: =IF(OR(C15<1,C15>200),1,0) -> 0 | X15: montovaná konstrukce z desek a nosného roštu (sádrokarton, dřevo apod.) | AC15: 3x těžká, 1x lehká | AG15: 7 | AJ15: f | AK15: Hz | AL15: 31.5 | AM15: 63 | AN15: 125 | AO15: 250 | AP15: 500 | AQ15: 1000 | AR15: 2000 | AS15: 4000 | AT15: 8000 | AU15: SUMA
A16: k1 | B16: dB | C16: 2 | D16: =IF(M16=0,"korekce závislá na vedlejších cestách šíření zvuku přes stavební konstrukce (viz tabulka 1)","zadejte hodnotu v požadovaném rozsahu") -> korekce závislá na vedlejších cestách šíření zvuku přes stavební konstrukce (viz tabulka 1) | M16: =IF(OR(C16<0,C16>20),1,0) -> 0 | AC16: 2x těžká, 2x lehká | AG16: ≥ 8 | AJ16: =A31 -> Stěna | AK16: dB | AL16: =$L$31*10^(-0.1*C31) -> 0.002943011915 | AM16: =$L$31*10^(-0.1*D31) -> 0.0007392511696 | AN16: 0.0005872080766 | AO16: 0.0004664359549 | AP16: 7.392511696e-05 | AQ16: 1.475e-05 | AR16: 4.664359549e-06 | AS16: 4.664359549e-06 | AT16: 4.664359549e-06 | AU16: -
A17: S | B17: m2 | C17: =IF($M$12>0,"",C13*C14) -> 18 | D17: plocha dělicí konstrukce (a x b) | X17: Za boční konstrukce se zde pokládají svislé a vodorovné stavební konstrukce obklopující dělicí stavební konstrukci (tj. boční stěny a stropní konstrukce včetně podlah). Např. označení "4x těžká" znamená, že dělící konstrukce navazuje na 4 konstrukce v masivním, těžkém provedení (tj. 2 stěny, strop a podlahu). | AJ17: =A32 -> Dveře | AK17: dB | AL17: =$L$32*10^(-0.1*C32) -> 0.00632455532 | AM17: =$L$32*10^(-0.1*D32) -> 0.002517850824 | AN17: 0.0002517850824 | AO17: 0.0002517850824 | AP17: 6.32455532e-05 | AQ17: 1.261914689e-05 | AR17: 3.99052463e-06 | AS17: 6.32455532e-06 | AT17: 6.32455532e-06 | AU17: -
A18: Sv | B18: m2 | C18: =IF($M$12>0,"",2*(C13+C14)*C15+2*C13*C14) -> 126 | D18: součet všech ploch ohraničujících místnost (tichý prostor) | AJ18: =A33 -> Okno | AK18: dB | AL18: =$L$33*10^(-0.1*C33) -> 0.03794733192 | AM18: =$L$33*10^(-0.1*D33) -> 0.009531938817 | AN18: 0.01510710494 | AO18: 0.004777286047 | AP18: 0.001510710494 | AQ18: 3.794733192e-06 | AR18: 3.794733192e-07 | AS18: 3.794733192e-07 | AT18: 3.794733192e-07 | AU18: -
A19: Zadejte průměrnou hladinu akustického tlaku ve strojovně (hlučném prostoru) ve frekvenčním spektru | N19: Boční přenos hluku přes stavební konstrukce | S19: =IF($M$12>0,"",C15) -> 5 | AJ19: =A34 -> Mezera | AK19: dB | AL19: =$L$34*10^(-0.1*C34) -> 0.005 | AM19: =$L$34*10^(-0.1*D34) -> 0.005 | AN19: 0.005 | AO19: 0.005 | AP19: 0.005 | AQ19: 0.005 | AR19: 0.005 | AS19: 0.005 | AT19: 0.005 | AU19: -
A20: f | B20: Hz | C20: 31.5 | D20: 63 | E20: 125 | F20: 250 | G20: 500 | H20: 1000 | I20: 2000 | J20: 4000 | K20: 8000 | L20: dB(A) | S20: m | X20: Vedlejší cesty obecně závisí na množství okrajových podmínek, zejména ve styku konstrukcí a jejich různém dispozíčním řešení, které lze jen obtížně zobecnit. Pro složitější situace je nutné korekci stanovit individuálně. Hodnoty v tabulce 7 vycházejí z praktických zkušeností a z měření na stavbách. Za lehké konstrukce se zde pokládají pouze roštové konstrukce z desek, které obvykle mají hmotnost do 100 kg/m2. Přesnější, ale teoretické hodnoty odhadu vlivu vedlejších cest pro modelové situace podle tvaru styku, druhu a plošných hmotností dělícího prvku a bočních konstrukcí lze získat např. výpočtem podle přílohy E normy ČSN 73 0532 nebo podle ČSN EN ISO 12354-1 apod. | AJ20: Suma | AK20: dB | AL20: =SUM(AL16:AL19) -> 0.05221489916 | AM20: =SUM(AM16:AM19) -> 0.01778904081 | AN20: 0.0209460981 | AO20: 0.01049550708 | AP20: 0.006647881164 | AQ20: 0.00503116388 | AR20: 0.005009034357 | AS20: 0.005011368388 | AT20: 0.005011368388 | AU20: -
A21: Lp1-LIN | B21: dB | C21: 87 | D21: 96 | E21: 103 | F21: 104 | G21: 99 | H21: 93 | I21: 83 | J21: 74 | K21: 63 | L21: =AU12 -> 100.0260271 | M21: =IF(OR(C21<1,C21>150),1,IF(OR(D21<1,D21>150),1,IF(OR(E21<1,E21>150),1,IF(OR(F21<1,F21>150),1,IF(OR(G21<1,G21>150),1,IF(OR(H21<1,H21>150),1,IF(OR(I21<1,I21>150),1,IF(OR(J21<1,J21>150),1,IF(OR(K21<1,K21>150),1,0))))))))) -> 0 | AJ21: Celkem | AK21: dB | AL21: =ROUND(10*LOG10($L$35/AL20),0) -> 25 | AM21: =ROUND(10*LOG10($L$35/AM20),0) -> 30 | AN21: 29 | AO21: 32 | AP21: 34 | AQ21: 36 | AR21: 36 | AS21: 36 | AT21: 36 | AU21: -
A22: Zadejte součinitel vzduchové pohltivosti v jednotlivých frekvenčních pásmech | L22: aS
A23: am | B23: - | C23: 0.2 | D23: 0.2 | E23: 0.2 | F23: 0.2 | G23: 0.2 | H23: 0.2 | I23: 0.2 | J23: 0.2 | K23: 0.2 | L23: =(G23+H23)/2 -> 0.2 | M23: =IF(OR(C23<0.01,C23>1),1,IF(OR(D23<0.01,D23>1),1,IF(OR(E23<0.01,E23>1),1,IF(OR(F23<0.01,F23>1),1,IF(OR(G23<0.01,G23>1),1,IF(OR(H23<0.01,H23>1),1,IF(OR(I23<0.01,I23>1),1,IF(OR(J23<0.01,J23>1),1,IF(OR(K23<0.01,K23>1),1,0))))))))) -> 0 | N23: Strojovna ® dělící konstrukce ® venkovní prostor | AJ23: Hladina hluku v místnosti
A24: Celková pohltivost v přijímací místnosti v jednotlivých frekvenčních pásmech | AJ24: f | AK24: Hz | AL24: 31.5 | AM24: 63 | AN24: 125 | AO24: 250 | AP24: 500 | AQ24: 1000 | AR24: 2000 | AS24: 4000 | AT24: 8000 | AU24: SUMA
A25: A2 | B25: m2 | C25: =IF($M$12>0,"",$C$18*C23) -> 25.2 | D25: =IF($M$12>0,"",$C$18*D23) -> 25.2 | E25: 25.2 | F25: 25.2 | G25: 25.2 | H25: 25.2 | I25: 25.2 | J25: 25.2 | K25: 25.2 | L25: =IF($M$12>0,"",L23*$C$18) -> 25.2 | O25: =IF($M$12>0,"",C16) -> 2 | S25: Nehomogenní stavební konstrukce mezi strojovnou a tichou místností | AJ25: Lp2-LIN | AK25: dB | AL25: =C41 -> 62.53871964 | AM25: =D41 -> 66.53871964 | AN25: 74.53871964 | AO25: 72.53871964 | AP25: 65.53871964 | AQ25: 57.53871964 | AR25: 47.53871964 | AS25: 38.53871964 | AT25: 27.53871964 | AU25: =IF(10*LOG10((10^(AL25/10))+(10^(AM25/10))+(10^(AN25/10))+(10^(AO25/10))+(10^(AP25/10))+(10^(AQ25/10))+(10^(AR25/10))+(10^(AS25/10))+(10^(AT25/10)))<20,"<20",10*LOG10((10^(AL25/10))+(10^(AM25/10))+(10^(AN25/10))+(10^(AO25/10))+(10^(AP25/10))+(10^(AQ25/10))+(10^(AR25/10))+(10^(AS25/10))+(10^(AT25/10)))) -> 77.55043944
O26: dB | X26: Tabulka 2 - typické stavební konstrukce | AJ26: Lp2-A | AK26: dB | AL26: =IF((AL25+AL7)<0,0,AL25+AL7) -> 23.13871964 | AM26: =IF((AM25+AM7)<0,0,AM25+AM7) -> 40.33871964 | AN26: 58.43871964 | AO26: 63.93871964 | AP26: 62.33871964 | AQ26: 57.53871964 | AR26: 48.73871964 | AS26: 39.53871964 | AT26: 26.43871964 | AU26: =IF(10*LOG10((10^(AL26/10))+(10^(AM26/10))+(10^(AN26/10))+(10^(AO26/10))+(10^(AP26/10))+(10^(AQ26/10))+(10^(AR26/10))+(10^(AS26/10))+(10^(AT26/10)))<20,"<20",10*LOG10((10^(AL26/10))+(10^(AM26/10))+(10^(AN26/10))+(10^(AO26/10))+(10^(AP26/10))+(10^(AQ26/10))+(10^(AR26/10))+(10^(AS26/10))+(10^(AT26/10)))) -> 67.44354998
A27: Vzduchová neprůzvučnost nehomogenní stavební konstrukce | X27: Vybrané stavební konstrukce a jejich frekvenční průběh vzduchové neprůzvučnosti
A28: Zadejte vzduchovou neprůzvučnost stavebních prvků dělící konstrukce mezi strojovnou a místností (venkovním prostorem) | N28: Strojovna (hlučný prostor) | R28: Venkovní prostor (tíchý prostor) | AJ28: Hladina hluku ve venkovním prostoru
X29: Typ stavební konstrukce | AJ29: f | AK29: Hz | AL29: 31.5 | AM29: 63 | AN29: 125 | AO29: 250 | AP29: 500 | AQ29: 1000 | AR29: 2000 | AS29: 4000 | AT29: 8000 | AU29: SUMA
A30: f | B30: Hz | C30: 31.5 | D30: 63 | E30: 125 | F30: 250 | G30: 500 | H30: 1000 | I30: 2000 | J30: 4000 | K30: 8000 | L30: S [m2] | X30: f | Y30: Hz | Z30: 31.5 | AA30: 63 | AB30: 125 | AC30: 250 | AD30: 500 | AE30: 1000 | AF30: 2000 | AG30: 4000 | AH30: 8000 | AJ30: Lp2-LIN | AK30: dB | AL30: =C47 -> 58 | AM30: =D47 -> 62 | AN30: 70 | AO30: 68 | AP30: 61 | AQ30: 53 | AR30: 43 | AS30: 34 | AT30: 23 | AU30: =IF(10*LOG10((10^(AL30/10))+(10^(AM30/10))+(10^(AN30/10))+(10^(AO30/10))+(10^(AP30/10))+(10^(AQ30/10))+(10^(AR30/10))+(10^(AS30/10))+(10^(AT30/10)))<20,"<20",10*LOG10((10^(AL30/10))+(10^(AM30/10))+(10^(AN30/10))+(10^(AO30/10))+(10^(AP30/10))+(10^(AQ30/10))+(10^(AR30/10))+(10^(AS30/10))+(10^(AT30/10)))) -> 73.01171979
A31: Stěna | B31: dB | C31: 37 | D31: 43 | E31: 44 | F31: 45 | G31: 53 | H31: 60 | I31: 65 | J31: 65 | K31: 65 | L31: =(C13*C14)-SUM(L32:L34) -> 14.75 | M31: =IF(OR(C31<0,C31>100),1,IF(OR(D31<0,D31>100),1,IF(OR(E31<0,E31>100),1,IF(OR(F31<0,F31>100),1,IF(OR(G31<0,G31>100),1,IF(OR(H31<0,H31>100),1,IF(OR(I31<0,I31>100),1,IF(OR(J31<0,J31>100),1,IF(OR(K31<0,K31>100),1,0))))))))) -> 0 | N31: Lp1 | O31: =IF($M$12>0,"",L21) -> 100.0260271 | V31: =IF($M$12>0,"",C13) -> 6 | X31: Dveře Greif GSD 1 (jednokřídlé) / dveře GREIF GSD 2 (dvoukřídlé) | AJ31: Lp2-A | AK31: dB | AL31: =IF((AL30+AL7)<0,0,AL30+AL7) -> 18.6 | AM31: =IF((AM30+AM7)<0,0,AM30+AM7) -> 35.8 | AN31: 53.9 | AO31: 59.4 | AP31: 57.8 | AQ31: 53 | AR31: 44.2 | AS31: 35 | AT31: 21.9 | AU31: =IF(10*LOG10((10^(AL31/10))+(10^(AM31/10))+(10^(AN31/10))+(10^(AO31/10))+(10^(AP31/10))+(10^(AQ31/10))+(10^(AR31/10))+(10^(AS31/10))+(10^(AT31/10)))<20,"<20",10*LOG10((10^(AL31/10))+(10^(AM31/10))+(10^(AN31/10))+(10^(AO31/10))+(10^(AP31/10))+(10^(AQ31/10))+(10^(AR31/10))+(10^(AS31/10))+(10^(AT31/10)))) -> 62.90483034
A32: Dveře | B32: dB | C32: 25 | D32: 29 | E32: 39 | F32: 39 | G32: 45 | H32: 52 | I32: 57 | J32: 55 | K32: 55 | L32: 2 | M32: =IF(OR(C32<0,C32>100),1,IF(OR(D32<0,D32>100),1,IF(OR(E32<0,E32>100),1,IF(OR(F32<0,F32>100),1,IF(OR(G32<0,G32>100),1,IF(OR(H32<0,H32>100),1,IF(OR(I32<0,I32>100),1,IF(OR(J32<0,J32>100),1,IF(OR(K32<0,K32>100),1,0)))))))))+IF(OR(L32<0,$L$31<0),1,0) -> 0 | O32: dB | S32: =IF($M$12>0,"",L47) -> 62.90483034 | T32: Lp2 | V32: m | X32: Rw | Y32: dB | Z32: 25 | AA32: 29 | AB32: 39 | AC32: 39 | AD32: 45 | AE32: 52 | AF32: 57 | AG32: 55 | AH32: 55
A33: Okno | B33: dB | C33: 15 | D33: 21 | E33: 19 | F33: 24 | G33: 29 | H33: 55 | I33: 65 | J33: 65 | K33: 65 | L33: 1.2 | M33: =IF(OR(C33<0,C33>100),1,IF(OR(D33<0,D33>100),1,IF(OR(E33<0,E33>100),1,IF(OR(F33<0,F33>100),1,IF(OR(G33<0,G33>100),1,IF(OR(H33<0,H33>100),1,IF(OR(I33<0,I33>100),1,IF(OR(J33<0,J33>100),1,IF(OR(K33<0,K33>100),1,0)))))))))+IF(OR(L33<0,$L$31<0),1,0) -> 0 | N33: Rw500Hz | O33: =IF($M$12>0,"",G35) -> 34 | S33: dB | V33: =IF($M$12>0,"",C14) -> 3 | Z33: 25 | AA33: 32 | AB33: 36 | AC33: 38 | AD33: 43 | AE33: 47 | AF33: 50 | AG33: 51 | AH33: 51
A34: Mezera | B34: dB | C34: 10 | D34: 10 | E34: 10 | F34: 10 | G34: 10 | H34: 10 | I34: 10 | J34: 10 | K34: 10 | L34: 0.05 | M34: =IF(OR(C34<0,C34>100),1,IF(OR(D34<0,D34>100),1,IF(OR(E34<0,E34>100),1,IF(OR(F34<0,F34>100),1,IF(OR(G34<0,G34>100),1,IF(OR(H34<0,H34>100),1,IF(OR(I34<0,I34>100),1,IF(OR(J34<0,J34>100),1,IF(OR(K34<0,K34>100),1,0)))))))))+IF(OR(L34<0,$L$31<0),1,0) -> 0 | O34: dB | V34: m | X34: Železobetonová stěna (2400 kg/m3) o tloušťce 200 mm / 250 mm
A35: Celkem | B35: dB | C35: =IF($M$12>0,"",AL21) -> 25 | D35: =IF($M$12>0,"",AM21) -> 30 | E35: 29 | F35: 32 | G35: 34 | H35: 36 | I35: 36 | J35: 36 | K35: 36 | L35: =C17 -> 18 | X35: Rw | Y35: dB | Z35: 37 | AA35: 43 | AB35: 44 | AC35: 45 | AD35: 53 | AE35: 60 | AF35: 65 | AG35: 65 | AH35: 65
Z36: 39 | AA36: 45 | AB36: 45 | AC36: 48 | AD36: 56 | AE36: 63 | AF36: 65 | AG36: 65 | AH36: 65
A37: Hladina akustického tlaku šířeného ze strojovny do sousední místnosti | X37: Stěna z cihel Porotherm 11,5 AKU / 19 AKU
A38: Očekávaná hladina akustického tlaku šířená ze strojovny do sousední místnosti, vypočtená dle frekvenčního spektra zdroje… | X38: Rw | Y38: dB | Z38: 32 | AA38: 38 | AB38: 41 | AC38: 39 | AD38: 41 | AE38: 49 | AF38: 55 | AG38: 60 | AH38: 60
N39: Boční přenos hluku přes stavební konstrukce | Z39: 36 | AA39: 42 | AB39: 43 | AC39: 42 | AD39: 49 | AE39: 56 | AF39: 61 | AG39: 65 | AH39: 65
A40: f | B40: Hz | C40: 31.5 | D40: 63 | E40: 125 | F40: 250 | G40: 500 | H40: 1000 | I40: 2000 | J40: 4000 | K40: 8000 | L40: dB(A) | X40: SDK W112 tl. 100 mm (opláštění 2x12,5 mm) / SDK W115 tl. 155 mm (opláštění 2x12,5 mm)
A41: Lp2-LIN | B41: dB | C41: =IF($M$12>0,"",IF((C21-((C35-$C$16)+10*LOG10(C25/$C$17)))<0,0,C21-((C35-$C$16)+10*LOG10(C25/$C$17)))) -> 62.53871964 | D41: =IF($M$12>0,"",IF((D21-((D35-$C$16)+10*LOG10(D25/$C$17)))<0,0,D21-((D35-$C$16)+10*LOG10(D25/$C$17)))) -> 66.53871964 | E41: 74.53871964 | F41: 72.53871964 | G41: 65.53871964 | H41: 57.53871964 | I41: 47.53871964 | J41: 38.53871964 | K41: 27.53871964 | L41: =IF($M$12>0,"",AU26) -> 67.44354998 | X41: Rw | Y41: dB | Z41: 13 | AA41: 19 | AB41: 29 | AC41: 46 | AD41: 58 | AE41: 65 | AF41: 65 | AG41: 60 | AH41: 55
Z42: 13 | AA42: 19 | AB42: 39 | AC42: 54 | AD42: 65 | AE42: 65 | AF42: 65 | AG42: 65 | AH42: 65
A43: Hladina akustického tlaku šířeného ze strojovny do venkovního prostoru | N43: Komentovaný závěr výpočtu: | X43: Okno standardní / zvukoizolační
A44: Očekávaná hladina akustického tlaku šířená ze strojovny do venkovního prostoru, vypočtená dle frekvenčního spektra zdroje… | N44: Hladina akustického tlaku Lp2 šířená ze strojovny přes stavební konstrukci, | X44: Rw | Y44: dB | Z44: 11 | AA44: 17 | AB44: 19 | AC44: 19 | AD44: 29 | AE44: 40 | AF44: 49 | AG44: 47 | AH44: 43
N45: bude dle prostoru příjmu nabývat hodnot: | Z45: 15 | AA45: 21 | AB45: 19 | AC45: 24 | AD45: 29 | AE45: 55 | AF45: 65 | AG45: 65 | AH45: 65
A46: f | B46: Hz | C46: 31.5 | D46: 63 | E46: 125 | F46: 250 | G46: 500 | H46: 1000 | I46: 2000 | J46: 4000 | K46: 8000 | L46: dB(A) | N46: =L41 -> 67.44354998 | P46: - pro hluk šířený ze strojovny do uzavřené sousední místnosti, nebo | X46: Kingspan FR 120 mm
A47: Lp2-LIN | B47: dB | C47: =IF($M$12>0,"",IF((C21-(C35-$C$16)-6)<0,0,C21-(C35-$C$16)-6)) -> 58 | D47: =IF($M$12>0,"",IF((D21-(D35-$C$16)-6)<0,0,D21-(D35-$C$16)-6)) -> 62 | E47: 70 | F47: 68 | G47: 61 | H47: 53 | I47: 43 | J47: 34 | K47: 23 | L47: =IF($M$12>0,"",AU31) -> 62.90483034 | N47: =L47 -> 62.90483034 | P47: - pro hluk šířený ze strojovny do venkovního prostoru | X47: Rw | Y47: dB | Z47: 8 | AA47: 14 | AB47: 17 | AC47: 21 | AD47: 23 | AE47: 20 | AF47: 31 | AG47: 43 | AH47: 42
